[Event "11th dMP Batavia 2019"]
[Site "Amsterdam"]
[Date "2019.03.05"]
[Round "5"]
[White "Leenhouts, Koen"]
[Black "Warmerdam, Max"]
[Result "1-0"]
[ECO "E82"]
[WhiteElo "2447"]
[BlackElo "2448"]
[Annotator "ChessBase"]
[PlyCount "83"]
[EventDate "2019.03.01"]
[EventType "tourn"]
[EventCountry "NED"]
[SourceTitle "playchess.com"]
[Source "ChessBase"]
[SourceQuality "1"]
[TimeControl "40/5400+30:1800+30"]

1. d4 {[%emt 0:00:00]} Nf6 {[%emt 0:00:00]} 2. c4 {[%emt 0:00:00]} g6 {[%emt 0:00:00]} 3. Nc3 {[%emt 0:00:00]} Bg7 {[%emt 0:00:00]} 4. e4 {[%emt 0:00:00]} d6 {[%emt 0:00:00]} 5. f3 {[%emt 0:00:04]} O-O {[%emt 0:00:00]} 6. Be3 {[%emt 0:00:36]} c5 {[%emt 0:00:36]} 7. Nge2 {[%emt 0:00:16]} b6 {[%emt 0:01:14]} 8. Qd2 {[%emt 0:00:25]} Ba6 {[%emt 0:00:05]} 9. b3 {[%emt 0:01:06]} e6 {[%emt 0:00:45]} 10. Rd1 {[%emt 0:08:36]} Nc6 {[%emt 0:00:34]} 11. d5 {[%emt 0:02:33]} exd5 {[%emt 0:01:02]} 12. cxd5 {[%emt 0:01:53]} Ne5 {[%emt 0:01:43]} 13. Ng3 {[%emt 0:06:34]} Bxf1 {[%emt 0:00:12]} 14. Kxf1 {[%emt 0:00:28]} a6 {[%emt 0:00:38]} 15. Bh6 {[%emt 0:05:17]} Bxh6 {[%emt 0:15:05]} 16. Qxh6 {[%emt 0:00:11]} Kh8 {[%emt 0:00:03]} 17. Nce2 {[%emt 0:07:36]} Ng8 {[%emt 0:00:58]} 18. Qd2 {[%emt 0:00:55]} Qh4 {[%emt 0:17:49]} 19. f4 {[%emt 0:14:32]} Nd7 {[%emt 0:11:35]} 20. Ng1 {[%emt 0:01:11]} Qf6 {[%emt 0:13:01]} 21. Nf3 {[%emt 0:02:06]} a5 {[%emt 0:01:08]} 22. Kf2 {[%emt 0:01:38]} a4 {[%emt 0:07:04]} 23. Rhe1 {[%emt 0:00:44]} axb3 {[%emt 0:00:42]} 24. axb3 {[%emt 0:00:31]} Rfe8 {[%emt 0:00:10]} 25. Kg1 {[%emt 0:04:27]} Qg7 {[%emt 0:02:33]} 26. h3 {[%emt 0:07:28]} Ra5 {[%emt 0:03:05]} 27. Kh2 {[%emt 0:01:48]} Rb5 {[%emt 0:07:48]} 28. e5 {[%emt 0:06:05]} Rxb3 {[%emt 0:01:48]} 29. e6 {[%emt 0:02:17]} Ndf6 {[%emt 0:00:36]} 30. Ng5 {[%emt 0:09:26]} fxe6 {[%emt 0:01:35]} 31. dxe6 {[%emt 0:00:26]} Ne7 {[%emt 0:00:12]} 32. Nf7+ {[%emt 0:03:09]} Kg8 {[%emt 0:00:05]} 33. Nxd6 {[%emt 0:00:13]} Rd8 {[%emt 0:01:19]} 34. Qf2 {[%emt 0:01:41]} Ra8 {[%emt 0:04:01]} 35. Nf7 {[%emt 0:02:25]} Nfd5 {[%emt 0:01:06]} 36. Re5 {[%emt 0:00:51]} Qf6 {[%emt 0:00:23]} 37. Rdxd5 {[%emt 0:02:15]} Nxd5 {[%emt 0:00:09]} 38. Rxd5 {[%emt 0:00:06]} Qxe6 {[%emt 0:00:27]} 39. Nh6+ {[%emt 0:00:20]} Kg7 {[%emt 0:04:37]} 40. Re5 {[%emt 0:00:52]} Qd7 {[%emt 0:01:05]} 41. Qe2 {[%emt 0:33:39]} Ra7 {[%emt 0:31:48]} 42. Ng4 {[%emt 0:00:00]} 1-0

[Event "11th dMP Batavia 2019"]
[Site "Amsterdam"]
[Date "2019.03.05"]
[Round "5"]
[White "Van der Wiel, John T.H."]
[Black "Meissner, Felix"]
[Result "0-1"]
[ECO "B51"]
[WhiteElo "2391"]
[BlackElo "2397"]
[Annotator "NA"]
[PlyCount "72"]
[EventDate "2019.03.01"]
[EventType "tourn"]
[EventCountry "NED"]
[SourceTitle "playchess.com"]
[Source "ChessBase"]
[SourceQuality "1"]
[TimeControl "40/5400+30:1800+30"]

1. e4 {[%emt 0:00:00]} c5 {[%emt 0:00:00]} 2. Nf3 {[%emt 0:00:00]} d6 {[%emt 0:00:00]} 3. Bb5+ {[%emt 0:00:10]} Nd7 {[%emt 0:00:14]} 4. d4 {[%emt 0:00:20]} cxd4 {[%emt 0:00:07]} 5. Qxd4 {[%emt 0:00:18]} a6 {[%emt 0:00:28]} 6. Bxd7+ {[%emt 0:01:05]} Bxd7 {[%emt 0:00:23]} 7. Bg5 {[%emt 0:01:58] B51: Sicilian: Moscow Variation (3 Bb5+) without 3...Bd7} (7. Nc3 e5 8. Qd3 Rc8 9. O-O Qc7 10. Rd1 Be6 11. a4 Nf6 12. Nd2 Be7 13. Nf1 Qc4 14. Ne3 Qxd3 15. Rxd3 Kd7 {½-½ (33) Xiong,J (2656)-Vachier Lagrave,M (2780) Douglas 2018}) 7... Rc8 {[%emt 0:03:11]} 8. Nc3 {[%emt 0:01:14]} h6 {[%emt 0:01:15]} 9. Bh4 {[%emt 0:01:44]} e5 {[%emt 0:03:16]} 10. Bxd8 $146 {[%emt 0:06:33]} ({Predecessor:} 10. Qd3 g5 11. Bg3 Nf6 12. O-O-O Qa5 13. Rhe1 Be7 14. Kb1 O-O 15. h4 {½-½ (53) David,A (2571)-Duda,J (2666) Drancy 2016}) 10... exd4 {[%emt 0:00:14]} 11. Ba5 {[%emt 0:01:22]} dxc3 {[%emt 0:00:13]} 12. Bxc3 {[%emt 0:00:05]} Nf6 {[%emt 0:08:16]} 13. Bxf6 {[%emt 0:03:05]} gxf6 {[%emt 0:00:05]} 14. Nd4 {[%emt 0:00:08]} f5 {[%emt 0:04:07]} 15. exf5 {[%emt 0:02:36]} Bg7 {[%emt 0:00:17]} 16. O-O-O {[%emt 0:00:18]} Bxd4 {[%emt 0:00:51]} 17. Rhe1+ {[%emt 0:02:44]} Kf8 {[%emt 0:01:49]} ({Resist} 17... Be5 18. Rxd6 Ke7 19. Rb6 $19) 18. Rxd4 {[%emt 0:00:25]} Bxf5 {[%emt 0:00:21]} 19. Re2 {[%emt 0:05:05]} Rc6 {[%emt 0:03:03]} 20. a4 {[%emt 0:02:00]} Rg8 {[%emt 0:05:25]} 21. Rf4 {[%emt 0:03:46]} Bd7 {[%emt 0:00:47]} 22. f3 {[%emt 0:00:40]} Rg6 {[%emt 0:01:41]} 23. b3 {[%emt 0:01:27]} Re6 {[%emt 0:03:11]} 24. Rd2 {[%emt 0:00:45]} Ke7 {[%emt 0:00:55]} 25. Rb4 {[%emt 0:03:55]} b6 {[%emt 0:00:58]} 26. Kb2 {[%emt 0:02:41]} a5 {[%emt 0:01:06]} 27. Rh4 {[%emt 0:08:25]} Rc5 {[%emt 0:00:40]} 28. g4 {[%emt 0:01:35]} Rf6 {[%emt 0:10:54]} 29. h3 {[%emt 0:05:17]} h5 {[%emt 0:07:45]} 30. Re2+ {[%emt 0:14:44]} Kf8 {[%emt 0:03:55]} 31. Rd2 {[%emt 0:03:28]} Bc6 {[%emt 0:02:53]} 32. gxh5 {[%emt 0:02:20]} Rh6 {[%emt 0:01:24]} 33. Rf4 {[%emt 0:09:59]} Rcxh5 {[%emt 0:01:31]} 34. h4 {[%emt 0:01:05]} Ke7 {[%emt 0:02:18]} 35. Rdd4 {[%emt 0:00:47]} Re6 {[%emt 0:01:00]} 36. Rc4 $19 {[%emt 0:00:45]} Rc5 {[%emt 0:01:03]} 0-1

[Event "11th dMP Batavia 2019"]
[Site "Amsterdam"]
[Date "2019.03.07"]
[Round "6"]
[White "Pijpers, Arthur"]
[Black "Leenhouts, Koen"]
[Result "1/2-1/2"]
[ECO "C96"]
[WhiteElo "2482"]
[BlackElo "2447"]
[Annotator "ChessBase"]
[PlyCount "81"]
[EventDate "2019.03.01"]
[EventType "tourn"]
[EventCountry "NED"]
[SourceTitle "playchess.com"]
[Source "ChessBase"]
[SourceQuality "1"]
[TimeControl "40/5400+30:1800+30"]

1. e4 {[%emt 0:00:00]} e5 {[%emt 0:00:00]} 2. Nf3 {[%emt 0:00:00]} Nc6 {[%emt 0:00:00]} 3. Bb5 {[%emt 0:00:00]} a6 {[%emt 0:00:00]} 4. Ba4 {[%emt 0:00:00]} Nf6 {[%emt 0:00:00]} 5. O-O {[%emt 0:00:00]} Be7 {[%emt 0:00:00]} 6. Re1 {[%emt 0:00:00]} b5 {[%emt 0:00:05]} 7. Bb3 {[%emt 0:00:00]} d6 {[%emt 0:00:07]} 8. c3 {[%emt 0:00:00]} O-O {[%emt 0:00:08]} 9. h3 {[%emt 0:00:00]} Na5 {[%emt 0:00:25]} 10. Bc2 {[%emt 0:00:05]} c5 {[%emt 0:00:06]} 11. d4 {[%emt 0:00:05]} Nd7 {[%emt 0:00:12]} 12. Nbd2 {[%emt 0:03:04]} exd4 {[%emt 0:01:26]} 13. cxd4 {[%emt 0:00:05]} Nc6 {[%emt 0:00:06]} 14. d5 {[%emt 0:00:03]} Nce5 {[%emt 0:00:10]} 15. a4 {[%emt 0:00:04]} Bb7 {[%emt 0:00:36]} 16. Nh2 {[%emt 0:00:06]} c4 {[%emt 0:06:08]} 17. b3 {[%emt 0:00:09]} Nc5 {[%emt 0:05:17]} 18. bxc4 {[%emt 0:07:25]} bxc4 {[%emt 0:07:47]} 19. Rb1 {[%emt 0:22:53]} Qc7 {[%emt 0:06:41]} 20. Ba3 {[%emt 0:03:42]} Ncd3 {[%emt 0:03:28]} 21. Rf1 {[%emt 0:01:52]} f5 {[%emt 0:18:10]} 22. Nhf3 {[%emt 0:05:07]} fxe4 {[%emt 0:17:17]} 23. Nxe5 {[%emt 0:00:11]} Nxe5 {[%emt 0:05:39]} 24. Nxe4 {[%emt 0:00:22]} Bc8 {[%emt 0:06:41]} 25. Bb2 {[%emt 0:05:52]} Ng6 {[%emt 0:00:21]} 26. Qd4 {[%emt 0:09:13]} Rf7 {[%emt 0:00:08]} 27. Nd2 {[%emt 0:03:59]} Nf4 {[%emt 0:07:10]} 28. Qxc4 {[%emt 0:09:46]} Qd8 {[%emt 0:05:35]} 29. Rfe1 {[%emt 0:08:34]} Bxh3 {[%emt 0:00:43]} 30. gxh3 {[%emt 0:03:02]} Bh4 {[%emt 0:04:16]} 31. Nf3 {[%emt 0:06:26]} Nxh3+ {[%emt 0:00:17]} 32. Kg2 {[%emt 0:00:05]} Rxf3 {[%emt 0:01:04]} 33. Qe4 {[%emt 0:12:36]} Qg5+ {[%emt 0:01:30]} 34. Kxf3 {[%emt 0:00:01]} Rf8+ {[%emt 0:00:27]} 35. Ke2 {[%emt 0:00:03]} Rxf2+ {[%emt 0:01:08]} 36. Kd3 {[%emt 0:00:01]} Qd2+ {[%emt 0:00:24]} 37. Kc4 {[%emt 0:00:02]} Rf4 {[%emt 0:01:36]} 38. Bc3 {[%emt 0:02:44]} Qxc2 {[%emt 0:03:08]} 39. Rb8+ {[%emt 0:00:04]} Kf7 {[%emt 0:00:05]} 40. Rb7+ {[%emt 0:00:05]} Kg8 {[%emt 0:00:44]} 41. Rb8+ {[%emt 0:05:44]} 1/2-1/2

[Event "11th dMP Batavia 2019"]
[Site "Amsterdam"]
[Date "2019.03.07"]
[Round "6"]
[White "Lahaye, Rick"]
[Black "Kuipers, Stefan"]
[Result "1/2-1/2"]
[ECO "D11"]
[WhiteElo "2414"]
[BlackElo "2455"]
[Annotator "RC"]
[PlyCount "98"]
[EventDate "2019.03.01"]
[EventType "tourn"]
[EventCountry "NED"]
[SourceTitle "playchess.com"]
[Source "ChessBase"]
[SourceQuality "1"]
[TimeControl "40/5400+30:1800+30"]

1. d4 {[%emt 0:00:00]} d5 {[%emt 0:00:00]} 2. c4 {[%emt 0:00:00]} c6 {[%emt 0:00:00]} 3. Nf3 {[%emt 0:00:00]} Nf6 {[%emt 0:00:00]} 4. Nbd2 {[%emt 0:00:00]} Bf5 {[%emt 0:00:00]} 5. Nh4 {[%emt 0:00:06]} Be4 {[%emt 0:00:00]} 6. f3 {[%emt 0:07:03]} Bg6 {[%emt 0:00:04]} 7. e3 {[%emt 0:14:45]} e6 {[%emt 0:00:59]} 8. g3 {[%emt 0:10:40]} Be7 {[%emt 0:09:19]} 9. Qb3 {[%emt 0:03:33]} Qc7 {[%emt 0:03:00]} 10. Bg2 {[%emt 0:00:24]} Bh5 {[%emt 0:06:39]} 11. f4 {[%emt 0:02:57]} Nbd7 {[%emt 0:03:58]} 12. Qc3 {[%emt 0:06:48]} c5 {[%emt 0:14:23]} 13. dxc5 {[%emt 0:12:42]} Qxc5 {[%emt 0:03:25]} 14. cxd5 {[%emt 0:00:37]} Nxd5 {[%emt 0:09:59]} 15. Qxc5 {[%emt 0:00:52]} Nxc5 {[%emt 0:00:59]} 16. Nf5 {[%emt 0:00:58]} Nd3+ {[%emt 0:11:33]} 17. Kf1 {[%emt 0:00:05]} exf5 {[%emt 0:06:12]} 18. Bxd5 {[%emt 0:00:05]} O-O-O {[%emt 0:06:07]} 19. Bf3 {[%emt 0:00:26]} Bxf3 {[%emt 0:02:51]} 20. Nxf3 {[%emt 0:00:04]} Bc5 {[%emt 0:04:02]} 21. Ke2 {[%emt 0:10:03]} Rd5 {[%emt 0:06:01]} 22. Rd1 {[%emt 0:07:12]} Rhd8 {[%emt 0:00:18]} 23. Rd2 {[%emt 0:00:11]} Kb8 {[%emt 0:03:01]} 24. a3 {[%emt 0:00:37]} f6 {[%emt 0:00:49]} 25. Rc2 {[%emt 0:00:43]} Bb6 {[%emt 0:01:48]} 26. b4 {[%emt 0:05:26]} Nxc1+ {[%emt 0:00:32]} 27. Raxc1 {[%emt 0:00:05]} a5 {[%emt 0:00:15]} 28. Rc3 {[%emt 0:00:28]} h6 {[%emt 0:02:10]} 29. R1c2 {[%emt 0:02:39]} axb4 {[%emt 0:01:11]} 30. axb4 {[%emt 0:00:06]} Rd1 {[%emt 0:00:08]} 31. Rd2 {[%emt 0:00:44]} R8xd2+ {[%emt 0:00:35]} 32. Nxd2 {[%emt 0:00:07]} Rg1 {[%emt 0:00:23]} 33. Nc4 {[%emt 0:04:21]} Bc7 {[%emt 0:00:08]} 34. Rc2 {[%emt 0:00:12]} Rb1 {[%emt 0:01:18]} 35. Rb2 {[%emt 0:00:21]} Rxb2+ {[%emt 0:02:05]} 36. Nxb2 {[%emt 0:00:04]} b5 {[%emt 0:00:05]} 37. Kf3 {[%emt 0:07:48]} Kb7 {[%emt 0:00:14]} 38. e4 {[%emt 0:00:08]} Kc6 {[%emt 0:00:19]} 39. g4 {[%emt 0:04:30]} fxg4+ {[%emt 0:03:02]} 40. Kxg4 {[%emt 0:00:14]} g6 {[%emt 0:00:06]} 41. Nd3 {[%emt 0:31:16]} Kd7 {[%emt 0:04:31]} 42. h3 {[%emt 0:00:00]} Ke6 {[%emt 0:03:22]} 43. Nc5+ {[%emt 0:00:00]} Kf7 {[%emt 0:01:44]} 44. Kf3 {[%emt 0:00:00]} g5 {[%emt 0:03:24]} 45. f5 {[%emt 0:00:00]} h5 {[%emt 0:00:13]} 46. Ne6 {[%emt 0:00:00]} Be5 {[%emt 0:03:21]} 47. Nd8+ {[%emt 0:00:00]} Ke7 {[%emt 0:00:52]} 48. Nc6+ {[%emt 0:00:00]} Kd7 {[%emt 0:03:43]} 49. Nxe5+ {[%emt 0:00:00]} fxe5 {[%emt 0:00:11]} 1/2-1/2

[Event "11th dMP Batavia 2019"]
[Site "Amsterdam"]
[Date "2019.03.08"]
[Round "7"]
[White "Van der Wiel, John T.H."]
[Black "Warmerdam, Max"]
[Result "1/2-1/2"]
[ECO "B67"]
[WhiteElo "2391"]
[BlackElo "2448"]
[Annotator "RC"]
[PlyCount "52"]
[EventDate "2019.03.01"]
[EventType "tourn"]
[EventCountry "NED"]
[SourceTitle "playchess.com"]
[Source "ChessBase"]
[SourceQuality "1"]
[TimeControl "40/5400+30:1800+30"]

1. e4 {[%emt 0:00:00]} c5 {[%emt 0:00:00]} 2. Nf3 {[%emt 0:00:00]} d6 {[%emt 0:00:00]} 3. d4 {[%emt 0:00:00]} cxd4 {[%emt 0:00:07]} 4. Nxd4 {[%emt 0:00:06]} Nf6 {[%emt 0:00:17]} 5. Nc3 {[%emt 0:00:12]} Nc6 {[%emt 0:00:55]} 6. Bg5 {[%emt 0:01:18]} e6 {[%emt 0:00:20]} 7. Qd2 {[%emt 0:00:07]} a6 {[%emt 0:00:06]} 8. O-O-O {[%emt 0:00:11]} Bd7 {[%emt 0:00:09]} 9. f3 {[%emt 0:01:04]} b5 {[%emt 0:01:38]} 10. Nxc6 {[%emt 0:01:40]} Bxc6 {[%emt 0:00:07]} 11. Ne2 {[%emt 0:00:18]} Bb7 {[%emt 0:00:29]} 12. Kb1 {[%emt 0:01:46]} h6 {[%emt 0:16:25]} 13. Be3 {[%emt 0:01:40]} Qc7 {[%emt 0:00:25]} 14. Rg1 {[%emt 0:03:34]} Nd7 {[%emt 0:11:00]} 15. Nd4 {[%emt 0:06:30]} Ne5 {[%emt 0:22:09]} 16. b3 {[%emt 0:12:01]} Be7 {[%emt 0:15:40]} 17. Bxb5+ {[%emt 0:09:08]} axb5 {[%emt 0:00:17]} 18. Nxb5 {[%emt 0:00:07]} Qc6 {[%emt 0:14:27]} 19. Nxd6+ {[%emt 0:00:57]} Kf8 {[%emt 0:01:22]} 20. Qd4 {[%emt 0:29:58]} Ng6 {[%emt 0:05:26]} 21. Qb6 {[%emt 0:07:53]} Qxb6 {[%emt 0:02:35]} 22. Bxb6 {[%emt 0:00:08]} Bc6 {[%emt 0:00:04]} 23. Bc7 {[%emt 0:07:42]} Ra7 {[%emt 0:00:25]} 24. Bb8 {[%emt 0:00:37]} Ra8 {[%emt 0:00:05]} 25. Bc7 {[%emt 0:00:15]} Ra7 {[%emt 0:00:04]} 26. Bb8 {[%emt 0:00:10]} Ra8 {[%emt 0:00:13]} 1/2-1/2

[Event "11th dMP Batavia 2019"]
[Site "Amsterdam"]
[Date "2019.03.09"]
[Round "8"]
[White "Arutinian, David"]
[Black "Kuipers, Stefan"]
[Result "1-0"]
[ECO "D46"]
[WhiteElo "2555"]
[BlackElo "2455"]
[Annotator "ChessBase"]
[PlyCount "65"]
[EventDate "2019.03.01"]
[EventType "tourn"]
[EventCountry "NED"]
[SourceTitle "playchess.com"]
[Source "ChessBase"]
[SourceQuality "1"]
[TimeControl "40/5400+30:1800+30"]

1. Nf3 {[%emt 1:25:27]} d5 {[%emt 1:25:27]} 2. e3 {[%emt 0:00:30]} Nf6 {[%emt 0:00:30]} 3. c4 {[%emt 0:00:30]} c6 {[%emt 0:00:30]} 4. Nc3 {[%emt 0:00:30]} e6 {[%emt 0:00:30]} 5. b3 {[%emt 0:00:30]} Bd6 {[%emt 0:00:30]} 6. Bb2 {[%emt 0:00:30]} O-O {[%emt 0:00:30]} 7. d4 {[%emt 0:00:30]} Nbd7 {[%emt 0:00:30]} 8. Bd3 {[%emt 0:00:30]} Re8 {[%emt 0:00:30]} 9. Qc2 {[%emt 0:00:30]} e5 {[%emt 0:00:30]} 10. cxd5 {[%emt 0:00:00]} cxd5 {[%emt 0:00:00]} 11. dxe5 {[%emt 0:00:00]} Nxe5 {[%emt 0:00:00]} 12. Nxe5 {[%emt 0:00:00]} Bxe5 {[%emt 0:00:00]} 13. Ne2 {[%emt 0:00:00]} d4 {[%emt 0:00:00]} 14. e4 {[%emt 0:00:00]} Qa5+ {[%emt 0:00:00]} 15. Qd2 {[%emt 0:00:00]} Qxd2+ {[%emt 0:00:00]} 16. Kxd2 {[%emt 0:00:00]} Nxe4+ {[%emt 0:00:00]} 17. Bxe4 {[%emt 0:00:00]} d3 {[%emt 0:00:00]} 18. Bxe5 {[%emt 0:00:00]} dxe2 {[%emt 0:00:00]} 19. f4 {[%emt 0:00:00]} f6 {[%emt 0:00:00]} 20. Kxe2 {[%emt 0:00:00]} Bg4+ {[%emt 0:00:00]} 21. Ke3 {[%emt 0:00:00]} Rad8 {[%emt 0:00:00]} 22. h3 {[%emt 0:00:00]} Bc8 {[%emt 0:00:00]} 23. Rhd1 {[%emt 0:00:00]} fxe5 {[%emt 0:00:00]} 24. fxe5 {[%emt 0:00:00]} Rxd1 {[%emt 0:00:00]} 25. Rxd1 {[%emt 0:00:00]} Kf7 {[%emt 0:00:00]} 26. Rc1 {[%emt 0:00:00]} Ke6 {[%emt 0:00:00]} 27. Bxh7 {[%emt 0:00:00]} Kxe5 {[%emt 0:00:00]} 28. Bg6 {[%emt 0:00:00]} Re6 {[%emt 0:00:00]} 29. Be4 {[%emt 0:00:00]} Re8 {[%emt 0:00:00]} 30. Rc5+ {[%emt 0:00:00]} Kf6 {[%emt 0:00:00]} 31. Kf3 {[%emt 0:00:00]} a6 {[%emt 0:00:00]} 32. Rc7 {[%emt 0:00:00]} b5 {[%emt 0:00:00]} 33. h4 {[%emt 0:00:00]} 1-0